Workbook

Sheet Beispiele Risiko
A1: Beispiel 1
A3: Investition 1 | D3: Investition 2
A4: Wahrscheinlichkeit | B4: Gewinn in % | D4: Wahrscheinlichkeit | E4: Gewinn in %
A5: 0.05 | B5: -3 | D5: 0.05 | E5: -20
A6: 0.04 | B6: -1 | D6: 0.04 | E6: -14.5
A7: 0.32 | B7: 0 | D7: 0.32 | E7: 0
A8: 0.4 | B8: 5 | D8: 0.4 | E8: 8
A9: 0.19 | B9: 16 | D9: 0.19 | E9: 17
A14: Beispiel 2
A16: Investition 1 | D16: Investition 2
A17: Wahrscheinlichkeit | B17: Gewinn in % | D17: Wahrscheinlichkeit | E17: Gewinn in %
A18: 0.06 | B18: -4 | D18: 0.1 | E18: -3
A19: 0.15 | B19: -2 | D19: 0.3 | E19: -2.3
A20: 0.2 | B20: -1 | D20: 0.12 | E20: 1.5
A21: 0.12 | B21: 1 | D21: 0.44 | E21: 3.8
A22: 0.4 | B22: 5 | D22: 0.04 | E22: 7
A23: 0.07 | B23: 10

Sheet LösUebung 11
A1: Lösung Uebung 11
A2: mögliche Wertekombinationen der Zuvallsvariablen Xi | E2: (32 Möglichkeiten). | F2: Produktverteilung auf X(B(Xi) | H2: Häufigkeitsauszählung: | J2: Verteilung der Summe mit P(T=t) ausgedrückt.
A3: X1 | B3: X2 | C3: X3 | D3: X4 | E3: X5 | F3: w(Xl1,X2,X3,X4,X5)((x1,x2,x3,x4,x5))= (wegen Unabhängigkeit der Zufallsvariablen, wegen Gleichverteilung auf S und bijektiven Zufallsvariablen) | G3: Summe: | H3: Mögliche Summen t (=B(T)) | I3: Häufigkeiten | J3: P(T=t)
A4: 0 | B4: 0 | C4: 0 | D4: 0 | E4: 0 | F4: =(1/2)^5 -> 0.03125 | G4: =SUM(A4:E4) -> 0 | H4: 0 | I4: =FREQUENCY(G4:G35,H4:H9) -> 1 | J4: =I4*$F$4 -> 0.03125
A5: 0 | B5: 0 | C5: 0 | D5: 0 | E5: 2 | F5: =(1/2)^5 -> 0.03125 | G5: 2 | H5: 2 | I5: 5 | J5: 0.15625
A6: 0 | B6: 0 | C6: 0 | D6: 2 | E6: 0 | F6: 0.03125 | G6: 2 | H6: 4 | I6: 10 | J6: 0.3125
A7: 0 | B7: 0 | C7: 0 | D7: 2 | E7: 2 | F7: 0.03125 | G7: 4 | H7: 6 | I7: 10 | J7: 0.3125
A8: 0 | B8: 0 | C8: 2 | D8: 0 | E8: 0 | F8: 0.03125 | G8: 2 | H8: 8 | I8: 5 | J8: 0.15625
A9: 0 | B9: 0 | C9: 2 | D9: 0 | E9: 2 | F9: 0.03125 | G9: 4 | H9: 10 | I9: 1 | J9: 0.03125
A10: 0 | B10: 0 | C10: 2 | D10: 2 | E10: 0 | F10: 0.03125 | G10: 4 | I10: Summe: | J10: =SUM(J4:J9) -> 1
A11: 0 | B11: 0 | C11: 2 | D11: 2 | E11: 2 | F11: 0.03125 | G11: 6
A12: 0 | B12: 2 | C12: 0 | D12: 0 | E12: 0 | F12: 0.03125 | G12: 2
A13: 0 | B13: 2 | C13: 0 | D13: 0 | E13: 2 | F13: 0.03125 | G13: 4
A14: 0 | B14: 2 | C14: 0 | D14: 2 | E14: 0 | F14: 0.03125 | G14: 4
A15: 0 | B15: 2 | C15: 0 | D15: 2 | E15: 2 | F15: 0.03125 | G15: 6
A16: 0 | B16: 2 | C16: 2 | D16: 0 | E16: 0 | F16: 0.03125 | G16: 4
A17: 0 | B17: 2 | C17: 2 | D17: 0 | E17: 2 | F17: 0.03125 | G17: 6
A18: 0 | B18: 2 | C18: 2 | D18: 2 | E18: 0 | F18: 0.03125 | G18: 6
A19: 0 | B19: 2 | C19: 2 | D19: 2 | E19: 2 | F19: 0.03125 | G19: 8
A20: 2 | B20: 0 | C20: 0 | D20: 0 | E20: 0 | F20: 0.03125 | G20: 2
A21: 2 | B21: 0 | C21: 0 | D21: 0 | E21: 2 | F21: 0.03125 | G21: 4
A22: 2 | B22: 0 | C22: 0 | D22: 2 | E22: 0 | F22: 0.03125 | G22: 4
A23: 2 | B23: 0 | C23: 0 | D23: 2 | E23: 2 | F23: 0.03125 | G23: 6
A24: 2 | B24: 0 | C24: 2 | D24: 0 | E24: 0 | F24: 0.03125 | G24: 4
A25: 2 | B25: 0 | C25: 2 | D25: 0 | E25: 2 | F25: 0.03125 | G25: 6
A26: 2 | B26: 0 | C26: 2 | D26: 2 | E26: 0 | F26: 0.03125 | G26: 6
A27: 2 | B27: 0 | C27: 2 | D27: 2 | E27: 2 | F27: 0.03125 | G27: 8
A28: 2 | B28: 2 | C28: 0 | D28: 0 | E28: 0 | F28: 0.03125 | G28: 4
A29: 2 | B29: 2 | C29: 0 | D29: 0 | E29: 2 | F29: 0.03125 | G29: 6
A30: 2 | B30: 2 | C30: 0 | D30: 2 | E30: 0 | F30: 0.03125 | G30: 6
A31: 2 | B31: 2 | C31: 0 | D31: 2 | E31: 2 | F31: 0.03125 | G31: 8
A32: 2 | B32: 2 | C32: 2 | D32: 0 | E32: 0 | F32: 0.03125 | G32: 6
A33: 2 | B33: 2 | C33: 2 | D33: 0 | E33: 2 | F33: 0.03125 | G33: 8
A34: 2 | B34: 2 | C34: 2 | D34: 2 | E34: 0 | F34: 0.03125 | G34: 8
A35: 2 | B35: 2 | C35: 2 | D35: 2 | E35: 2 | F35: 0.03125 | G35: 10

Sheet LösUebung 12
A1: Lösung Uebung 12
A2: mögliche Wertekombinationen der Zuvallsvariablen Xi | E2: (64 Möglichkeiten).
A3: X1 | B3: X2 | C3: X3 | D3: X4 | E3: X5 | F3: X6 | G3: w(Xl1,X2,X3,X4,X5,X6)((x1,x2,x3,x4,x5,x6))= (wegen Unabhängigkeit der Zufallsvariablen, wegen Gleichverteilung auf S und bijektiven Zufallsvariablen) | H3: Varianzen | I3: Bild von S^2 (mögliche Varianzen) | J3: Häufigkeiten der Varianzen | K3: Werte der Wahrscheinlichkeitsfunktions von S^2
A4: 0 | B4: 0 | C4: 0 | D4: 0 | E4: 0 | F4: 0 | G4: =0.5^6 -> 0.015625 | H4: =VAR(A4:F4) -> 0 | I4: 0 | J4: =FREQUENCY(H4:H67,I4:I7) -> 2 | K4: =J4*$G$4 -> 0.03125
A5: 0 | B5: 0 | C5: 0 | D5: 0 | E5: 0 | F5: 2 | G5: =0.5^6 -> 0.015625 | H5: =VAR(A5:F5) -> 0.6666666667 | I5: =VAR(A5:F5) -> 0.6666666667 | J5: 12 | K5: =J5*$G$4 -> 0.1875
A6: 0 | B6: 0 | C6: 0 | D6: 0 | E6: 2 | F6: 0 | G6: 0.015625 | H6: 0.6666666667 | I6: =VAR(A14:F14) -> 1.066666667 | J6: 30 | K6: =J6*$G$4 -> 0.46875
A7: 0 | B7: 0 | C7: 0 | D7: 0 | E7: 2 | F7: 2 | G7: 0.015625 | H7: 1.066666667 | I7: 1.2 | J7: 20 | K7: =J7*$G$4 -> 0.3125
A8: 0 | B8: 0 | C8: 0 | D8: 2 | E8: 0 | F8: 0 | G8: 0.015625 | H8: 0.6666666667 | K8: =SUM(K4:K7) -> 1
A9: 0 | B9: 0 | C9: 0 | D9: 2 | E9: 0 | F9: 2 | G9: 0.015625 | H9: 1.066666667
A10: 0 | B10: 0 | C10: 0 | D10: 2 | E10: 2 | F10: 0 | G10: 0.015625 | H10: 1.066666667
A11: 0 | B11: 0 | C11: 0 | D11: 2 | E11: 2 | F11: 2 | G11: 0.015625 | H11: 1.2
A12: 0 | B12: 0 | C12: 2 | D12: 0 | E12: 0 | F12: 0 | G12: 0.015625 | H12: 0.6666666667
A13: 0 | B13: 0 | C13: 2 | D13: 0 | E13: 0 | F13: 2 | G13: 0.015625 | H13: 1.066666667
A14: 0 | B14: 0 | C14: 2 | D14: 0 | E14: 2 | F14: 0 | G14: 0.015625 | H14: 1.066666667
A15: 0 | B15: 0 | C15: 2 | D15: 0 | E15: 2 | F15: 2 | G15: 0.015625 | H15: 1.2
A16: 0 | B16: 0 | C16: 2 | D16: 2 | E16: 0 | F16: 0 | G16: 0.015625 | H16: 1.066666667
A17: 0 | B17: 0 | C17: 2 | D17: 2 | E17: 0 | F17: 2 | G17: 0.015625 | H17: 1.2
A18: 0 | B18: 0 | C18: 2 | D18: 2 | E18: 2 | F18: 0 | G18: 0.015625 | H18: 1.2
A19: 0 | B19: 0 | C19: 2 | D19: 2 | E19: 2 | F19: 2 | G19: 0.015625 | H19: 1.066666667
A20: 0 | B20: 2 | C20: 0 | D20: 0 | E20: 0 | F20: 0 | G20: 0.015625 | H20: 0.6666666667
A21: 0 | B21: 2 | C21: 0 | D21: 0 | E21: 0 | F21: 2 | G21: 0.015625 | H21: 1.066666667
A22: 0 | B22: 2 | C22: 0 | D22: 0 | E22: 2 | F22: 0 | G22: 0.015625 | H22: 1.066666667
A23: 0 | B23: 2 | C23: 0 | D23: 0 | E23: 2 | F23: 2 | G23: 0.015625 | H23: 1.2
A24: 0 | B24: 2 | C24: 0 | D24: 2 | E24: 0 | F24: 0 | G24: 0.015625 | H24: 1.066666667
A25: 0 | B25: 2 | C25: 0 | D25: 2 | E25: 0 | F25: 2 | G25: 0.015625 | H25: 1.2
A26: 0 | B26: 2 | C26: 0 | D26: 2 | E26: 2 | F26: 0 | G26: 0.015625 | H26: 1.2
A27: 0 | B27: 2 | C27: 0 | D27: 2 | E27: 2 | F27: 2 | G27: 0.015625 | H27: 1.066666667
A28: 0 | B28: 2 | C28: 2 | D28: 0 | E28: 0 | F28: 0 | G28: 0.015625 | H28: 1.066666667
A29: 0 | B29: 2 | C29: 2 | D29: 0 | E29: 0 | F29: 2 | G29: 0.015625 | H29: 1.2
A30: 0 | B30: 2 | C30: 2 | D30: 0 | E30: 2 | F30: 0 | G30: 0.015625 | H30: 1.2
A31: 0 | B31: 2 | C31: 2 | D31: 0 | E31: 2 | F31: 2 | G31: 0.015625 | H31: 1.066666667
A32: 0 | B32: 2 | C32: 2 | D32: 2 | E32: 0 | F32: 0 | G32: 0.015625 | H32: 1.2
A33: 0 | B33: 2 | C33: 2 | D33: 2 | E33: 0 | F33: 2 | G33: 0.015625 | H33: 1.066666667
A34: 0 | B34: 2 | C34: 2 | D34: 2 | E34: 2 | F34: 0 | G34: 0.015625 | H34: 1.066666667
A35: 0 | B35: 2 | C35: 2 | D35: 2 | E35: 2 | F35: 2 | G35: 0.015625 | H35: 0.6666666667
A36: 2 | B36: 0 | C36: 0 | D36: 0 | E36: 0 | F36: 0 | G36: 0.015625 | H36: 0.6666666667
A37: 2 | B37: 0 | C37: 0 | D37: 0 | E37: 0 | F37: 2 | G37: 0.015625 | H37: 1.066666667
A38: 2 | B38: 0 | C38: 0 | D38: 0 | E38: 2 | F38: 0 | G38: 0.015625 | H38: 1.066666667
A39: 2 | B39: 0 | C39: 0 | D39: 0 | E39: 2 | F39: 2 | G39: 0.015625 | H39: 1.2
A40: 2 | B40: 0 | C40: 0 | D40: 2 | E40: 0 | F40: 0 | G40: 0.015625 | H40: 1.066666667
A41: 2 | B41: 0 | C41: 0 | D41: 2 | E41: 0 | F41: 2 | G41: 0.015625 | H41: 1.2
A42: 2 | B42: 0 | C42: 0 | D42: 2 | E42: 2 | F42: 0 | G42: 0.015625 | H42: 1.2
A43: 2 | B43: 0 | C43: 0 | D43: 2 | E43: 2 | F43: 2 | G43: 0.015625 | H43: 1.066666667
A44: 2 | B44: 0 | C44: 2 | D44: 0 | E44: 0 | F44: 0 | G44: 0.015625 | H44: 1.066666667
A45: 2 | B45: 0 | C45: 2 | D45: 0 | E45: 0 | F45: 2 | G45: 0.015625 | H45: 1.2
A46: 2 | B46: 0 | C46: 2 | D46: 0 | E46: 2 | F46: 0 | G46: 0.015625 | H46: 1.2
A47: 2 | B47: 0 | C47: 2 | D47: 0 | E47: 2 | F47: 2 | G47: 0.015625 | H47: 1.066666667
A48: 2 | B48: 0 | C48: 2 | D48: 2 | E48: 0 | F48: 0 | G48: 0.015625 | H48: 1.2
A49: 2 | B49: 0 | C49: 2 | D49: 2 | E49: 0 | F49: 2 | G49: 0.015625 | H49: 1.066666667
A50: 2 | B50: 0 | C50: 2 | D50: 2 | E50: 2 | F50: 0 | G50: 0.015625 | H50: 1.066666667
A51: 2 | B51: 0 | C51: 2 | D51: 2 | E51: 2 | F51: 2 | G51: 0.015625 | H51: 0.6666666667
A52: 2 | B52: 2 | C52: 0 | D52: 0 | E52: 0 | F52: 0 | G52: 0.015625 | H52: 1.066666667
A53: 2 | B53: 2 | C53: 0 | D53: 0 | E53: 0 | F53: 2 | G53: 0.015625 | H53: 1.2
A54: 2 | B54: 2 | C54: 0 | D54: 0 | E54: 2 | F54: 0 | G54: 0.015625 | H54: 1.2
A55: 2 | B55: 2 | C55: 0 | D55: 0 | E55: 2 | F55: 2 | G55: 0.015625 | H55: 1.066666667
A56: 2 | B56: 2 | C56: 0 | D56: 2 | E56: 0 | F56: 0 | G56: 0.015625 | H56: 1.2
A57: 2 | B57: 2 | C57: 0 | D57: 2 | E57: 0 | F57: 2 | G57: 0.015625 | H57: 1.066666667
A58: 2 | B58: 2 | C58: 0 | D58: 2 | E58: 2 | F58: 0 | G58: 0.015625 | H58: 1.066666667
A59: 2 | B59: 2 | C59: 0 | D59: 2 | E59: 2 | F59: 2 | G59: 0.015625 | H59: 0.6666666667
A60: 2 | B60: 2 | C60: 2 | D60: 0 | E60: 0 | F60: 0 | G60: 0.015625 | H60: 1.2
A61: 2 | B61: 2 | C61: 2 | D61: 0 | E61: 0 | F61: 2 | G61: 0.015625 | H61: 1.066666667
A62: 2 | B62: 2 | C62: 2 | D62: 0 | E62: 2 | F62: 0 | G62: 0.015625 | H62: 1.066666667
A63: 2 | B63: 2 | C63: 2 | D63: 0 | E63: 2 | F63: 2 | G63: 0.015625 | H63: 0.6666666667
A64: 2 | B64: 2 | C64: 2 | D64: 2 | E64: 0 | F64: 0 | G64: 0.015625 | H64: 1.066666667
A65: 2 | B65: 2 | C65: 2 | D65: 2 | E65: 0 | F65: 2 | G65: 0.015625 | H65: 0.6666666667
A66: 2 | B66: 2 | C66: 2 | D66: 2 | E66: 2 | F66: 0 | G66: 0.015625 | H66: 0.6666666667
A67: 2 | B67: 2 | C67: 2 | D67: 2 | E67: 2 | F67: 2 | G67: 0.015625 | H67: 0

Sheet Münze n= 10
A1: Münze n = 10
A3: Zufallszahlen fixiert
A4: 0.5419327263 | B4: =IF(A4<0.7,0,1) -> 0 | D4: Mittelwert | E4: =AVERAGE(B4:B13) -> 0.2
A5: 0.5639178106 | B5: 0
A6: 0.4481449306 | B6: 0 | D6: Differenz | E6: =ABS(E4-0.3) -> 0.1
A7: 0.4426899546 | B7: 0
A8: 0.8693709808 | B8: 1
A9: 0.3037291257 | B9: 0
A10: 0.135070028 | B10: 0
A11: 0.7340723338 | B11: 1
A12: 0.5357167702 | B12: 0
A13: 0.4857275843 | B13: 0

Sheet Münze n = 100
A1: Münze n = 100
A3: Zufallszahlen fixiert | D3: Mittelwert
A4: 0.1678125182 | B4: =IF(A4<0.7,0,1) -> 0 | D4: =AVERAGE(B4:B103) -> 0.33
A5: 0.2980679703 | B5: 0
A6: 0.5368631482 | B6: 0 | D6: Differenz | E6: =ABS(D4-0.3) -> 0.03
A7: 0.7443057778 | B7: 1
A8: 0.0383706056 | B8: 0
A9: 0.04904455477 | B9: 0
A10: 0.8778993579 | B10: 1
A11: 0.06092128452 | B11: 0
A12: 0.519262286 | B12: 0
A13: 0.8862375666 | B13: 1
A14: 0.9504688857 | B14: 1
A15: 0.7662530856 | B15: 1
A16: 0.5828806746 | B16: 0
A17: 0.6824323094 | B17: 0
A18: 0.3790372442 | B18: 0
A19: 0.7361026023 | B19: 1
A20: 0.4749846164 | B20: 0
A21: 0.035244739 | B21: 0
A22: 0.3499087365 | B22: 0
A23: 0.6650285234 | B23: 0
A24: 0.4564556677 | B24: 0
A25: 0.0624398227 | B25: 0
A26: 0.4328257635 | B26: 0
A27: 0.9931501307 | B27: 1
A28: 0.9387606899 | B28: 1
A29: 0.7800628629 | B29: 1
A30: 0.2087040226 | B30: 0
A31: 0.8935331543 | B31: 1
A32: 0.600435216 | B32: 0
A33: 0.08558316192 | B33: 0
A34: 0.7235602227 | B34: 1
A35: 0.2962741691 | B35: 0
A36: 0.9199413517 | B36: =IF(A36<0.7,0,1) -> 1
A37: 0.9553419923 | B37: 1
A38: 0.6250333385 | B38: 0
A39: 0.663744489 | B39: 0
A40: 0.8459539007 | B40: 1
A41: 0.3245858554 | B41: 0
A42: 0.9690128825 | B42: 1
A43: 0.8868464397 | B43: 1
A44: 0.9302115882 | B44: 1
A45: 0.8193342962 | B45: 1
A46: 0.8934497051 | B46: 1
A47: 0.7808805419 | B47: 1
A48: 0.2391292872 | B48: 0
A49: 0.7000568981 | B49: 1
A50: 0.4701229201 | B50: 0
A51: 0.2885254216 | B51: 0
A52: 0.8194921828 | B52: 1
A53: 0.4440541613 | B53: 0
A54: 0.2672453069 | B54: 0
A55: 0.8274864718 | B55: 1
A56: 0.9559669483 | B56: 1
A57: 0.7627262957 | B57: 1
A58: 0.946277435 | B58: 1
A59: 0.6020160117 | B59: 0
A60: 0.6105775786 | B60: 0
A61: 0.6937262923 | B61: 0
A62: 0.297243684 | B62: 0
A63: 0.4415479575 | B63: 0
A64: 0.6538172626 | B64: 0
A65: 0.3506630292 | B65: 0
A66: 0.07293651202 | B66: 0
A67: 0.5208115381 | B67: 0
A68: 0.1014430597 | B68: =IF(A68<0.7,0,1) -> 0
A69: 0.4836159406 | B69: 0
A70: 0.803479694 | B70: 1
A71: 0.1854016611 | B71: 0
A72: 0.04104023936 | B72: 0
A73: 0.2675177281 | B73: 0
A74: 0.5029343864 | B74: 0
A75: 0.5299361754 | B75: 0
A76: 0.7145051568 | B76: 1
A77: 0.366471736 | B77: 0
A78: 0.3302460083 | B78: 0
A79: 0.5573740987 | B79: 0
A80: 0.1823499102 | B80: 0
A81: 0.06979483996 | B81: 0
A82: 0.6664502823 | B82: 0
A83: 0.4195491579 | B83: 0
A84: 0.6036063449 | B84: 0
A85: 0.2292407519 | B85: 0
A86: 0.5847510885 | B86: 0
A87: 0.05176757699 | B87: 0
A88: 0.6207005933 | B88: 0
A89: 0.1118534447 | B89: 0
A90: 0.724007646 | B90: 1
A91: 0.6904180591 | B91: 0
A92: 0.8070853706 | B92: 1
A93: 0.5967519328 | B93: 0
A94: 0.9120589467 | B94: 1
A95: 0.5422428232 | B95: 0
A96: 0.5780936338 | B96: 0
A97: 0.6689041873 | B97: 0
A98: 0.5193501103 | B98: 0
A99: 0.7487601673 | B99: 1
A100: 0.784929766 | B100: =IF(A100<0.7,0,1) -> 1
A101: 0.006558895397 | B101: =IF(A101<0.7,0,1) -> 0
A102: 0.6262386985 | B102: =IF(A102<0.7,0,1) -> 0
A103: 0.5015848891 | B103: =IF(A103<0.7,0,1) -> 0

Sheet Münze n = 1000
A1: Münze n = 1000
A3: Zufallszahlen fixiert | D3: Mittelwert
A4: 0.3085001817 | B4: =IF(A4<0.7,0,1) -> 0 | D4: =AVERAGE(B4:B103) -> 0.32
A5: 0.9412627264 | B5: 1
A6: 0.3525630088 | B6: 0 | D6: Differenz | E6: =ABS(D4-0.3) -> 0.02
A7: 0.7326360847 | B7: 1
A8: 0.4303151426 | B8: 0
A9: 0.3363422805 | B9: 0
A10: 0.4288637533 | B10: 0
A11: 0.0822484998 | B11: 0
A12: 0.973843582 | B12: 1
A13: 0.3291458183 | B13: 0
A14: 0.7524087093 | B14: 1
A15: 0.6172607756 | B15: 0
A16: 0.329404325 | B16: 0
A17: 0.2912026107 | B17: 0
A18: 0.1121668011 | B18: 0
A19: 0.8014805182 | B19: 1
A20: 0.5514959405 | B20: 0
A21: 0.4529582442 | B21: 0
A22: 0.7142434399 | B22: 1
A23: 0.7961498521 | B23: 1
A24: 0.1990245121 | B24: 0
A25: 0.8310606532 | B25: 1
A26: 0.05800233574 | B26: 0
A27: 0.8522662541 | B27: 1
A28: 0.3182084871 | B28: 0
A29: 0.3368792165 | B29: 0
A30: 0.7021122888 | B30: 1
A31: 0.6561156242 | B31: 0
A32: 0.9228718656 | B32: 1
A33: 0.7359189982 | B33: 1
A34: 0.6718078616 | B34: 0
A35: 0.03633577058 | B35: 0
A36: 0.0649298475 | B36: 0
A37: 0.8873592595 | B37: 1
A38: 0.966614447 | B38: 1
A39: 0.3318112974 | B39: 0
A40: 0.930078387 | B40: 1
A41: 0.5111661003 | B41: 0
A42: 0.3735979921 | B42: 0
A43: 0.317207346 | B43: 0
A44: 0.5046720445 | B44: 0
A45: 0.595475868 | B45: 0
A46: 0.379826355 | B46: 0
A47: 0.4859593799 | B47: 0
A48: 0.8183967998 | B48: 1
A49: 0.6862981803 | B49: 0
A50: 0.3457553149 | B50: 0
A51: 0.8742750941 | B51: 1
A52: 0.4670261514 | B52: 0
A53: 0.8751597911 | B53: 1
A54: 0.1556357808 | B54: 0
A55: 0.7103300641 | B55: 1
A56: 0.3628861525 | B56: 0
A57: 0.1162307366 | B57: 0
A58: 0.7133911022 | B58: 1
A59: 0.425341884 | B59: 0
A60: 0.493969274 | B60: 0
A61: 0.4835669486 | B61: 0
A62: 0.3223296253 | B62: 0
A63: 0.810577162 | B63: 1
A64: 0.8896350502 | B64: 1
A65: 0.3171553105 | B65: 0
A66: 0.9936316282 | B66: 1
A67: 0.6675477535 | B67: 0
A68: 0.1978141228 | B68: =IF(A68<0.7,0,1) -> 0
A69: 0.9438273032 | B69: 1
A70: 0.5392720191 | B70: 0
A71: 0.4018263403 | B71: 0
A72: 0.5478149204 | B72: 0
A73: 0.3016602134 | B73: 0
A74: 0.816283079 | B74: 1
A75: 0.9274463114 | B75: 1
A76: 0.6615516778 | B76: 0
A77: 0.3103546312 | B77: 0
A78: 0.204160199 | B78: 0
A79: 0.2686409384 | B79: 0
A80: 0.5339831956 | B80: 0
A81: 0.4602906421 | B81: 0
A82: 0.7257230573 | B82: 1
A83: 0.5374723991 | B83: 0
A84: 0.7277580922 | B84: 1
A85: 0.5235501575 | B85: 0
A86: 0.9974233368 | B86: 1
A87: 0.9059181331 | B87: 1
A88: 0.2333119823 | B88: 0
A89: 0.5683052663 | B89: 0
A90: 0.5373475153 | B90: 0
A91: 0.5012747719 | B91: 0
A92: 0.2308621143 | B92: 0
A93: 0.5081511288 | B93: 0
A94: 0.7635629451 | B94: 1
A95: 0.1630108809 | B95: 0
A96: 0.1411881161 | B96: 0
A97: 0.8198148188 | B97: 1
A98: 0.6126622851 | B98: 0
A99: 0.1676288596 | B99: 0
A100: 0.4943572497 | B100: 0
A101: 0.293875873 | B101: 0
A102: 0.3662755003 | B102: 0
A103: 0.4030159099 | B103: 0
A104: 0.2305778436 | B104: 0
A105: 0.7163286441 | B105: 1
A106: 0.2749408188 | B106: 0
A107: 0.4051088353 | B107: 0
A108: 0.7851984882 | B108: 1
A109: 0.6456792105 | B109: 0
A110: 0.4268530656 | B110: 0
A111: 0.335284665 | B111: 0
A112: 0.04202152329 | B112: 0
A113: 0.9047072019 | B113: 1
A114: 0.3407569454 | B114: 0
A115: 0.7852874375 | B115: 1
A116: 0.5192507872 | B116: 0
A117: 0.7733076215 | B117: 1
A118: 0.8654780263 | B118: 1
A119: 0.07102373905 | B119: 0
A120: 0.7354682584 | B120: 1
A121: 0.2450930221 | B121: 0
A122: 0.2698975162 | B122: 0
A123: 0.8748338818 | B123: 1
A124: 0.9548799383 | B124: 1
A125: 0.08720064182 | B125: 0
A126: 0.6088302794 | B126: 0
A127: 0.5335005432 | B127: 0
A128: 0.7201618119 | B128: 1
A129: 0.9204817725 | B129: 1
A130: 0.2628149293 | B130: 0
A131: 0.3167477923 | B131: 0
A132: 0.9913949403 | B132: =IF(A132<0.7,0,1) -> 1
A133: 0.7010356221 | B133: 1
A134: 0.08217153615 | B134: 0
A135: 0.2179834992 | B135: 0
A136: 0.02727257638 | B136: 0
A137: 0.05529965953 | B137: 0
A138: 0.3092832822 | B138: 0
A139: 0.6824416309 | B139: 0
A140: 0.4705838698 | B140: 0
A141: 0.8155123141 | B141: 1
A142: 0.3577636021 | B142: 0
A143: 0.8076634811 | B143: 1
A144: 0.2743747447 | B144: 0
A145: 0.8456946391 | B145: 1
A146: 0.7783779374 | B146: 1
A147: 0.6610497422 | B147: 0
A148: 0.3808450946 | B148: 0
A149: 0.4910011454 | B149: 0
A150: 0.3335763914 | B150: 0
A151: 0.2650667833 | B151: 0
A152: 0.4322053565 | B152: 0
A153: 0.9001330444 | B153: 1
A154: 0.4179557992 | B154: 0
A155: 0.9552313152 | B155: 1
A156: 0.5380738946 | B156: 0
A157: 0.6350462678 | B157: 0
A158: 0.0007234673686 | B158: 0
A159: 0.3165000271 | B159: 0
A160: 0.5580936185 | B160: 0
A161: 0.2487540505 | B161: 0
A162: 0.2248570143 | B162: 0
A163: 0.5320642578 | B163: 0
A164: 0.6144030129 | B164: 0
A165: 0.2633171248 | B165: 0
A166: 0.2488092143 | B166: 0
A167: 0.7666206911 | B167: 1
A168: 0.1931340756 | B168: 0
A169: 0.9810833497 | B169: 1
A170: 0.4309041468 | B170: 0
A171: 0.1209524055 | B171: 0
A172: 0.08490189152 | B172: 0
A173: 0.03280360014 | B173: 0
A174: 0.3754839765 | B174: 0
A175: 0.8394597703 | B175: 1
A176: 0.5457311791 | B176: 0
A177: 0.8372367429 | B177: 1
A178: 0.7133785675 | B178: 1
A179: 0.3022383987 | B179: 0
A180: 0.4946403512 | B180: 0
A181: 0.07421621196 | B181: 0
A182: 0.08874461676 | B182: 0
A183: 0.7722082331 | B183: 1
A184: 0.06838458181 | B184: 0
A185: 0.8163049965 | B185: 1
A186: 0.1426975702 | B186: 0
A187: 0.6441635135 | B187: 0
A188: 0.541192923 | B188: 0
A189: 0.2670235206 | B189: 0
A190: 0.6493228725 | B190: 0
A191: 0.2112578609 | B191: 0
A192: 0.9747791536 | B192: 1
A193: 0.5173942179 | B193: 0
A194: 0.5399413305 | B194: 0
A195: 0.9751343079 | B195: 1
A196: 0.005364700282 | B196: =IF(A196<0.7,0,1) -> 0
A197: 0.89804847 | B197: 1
A198: 0.9453511101 | B198: 1
A199: 0.504579007 | B199: 0
A200: 0.6817544278 | B200: 0
A201: 0.721562255 | B201: 1
... 802 more rows

Sheet Münze n = 10000
A1: Münze n = 10000
A3: Zufallszahlen fixiert | D3: Mittelwert
A4: 0.2248103586 | B4: =IF(A4<0.7,0,1) -> 0 | D4: =AVERAGE(B4:B103) -> 0.29
A5: 0.07385896876 | B5: 0
A6: 0.5802592188 | B6: 0 | D6: Differenz | E6: =ABS(D4-0.3) -> 0.01
A7: 0.9371144048 | B7: 1
A8: 0.6118962683 | B8: 0
A9: 0.6445781825 | B9: 0
A10: 0.6136577829 | B10: 0
A11: 0.9444124595 | B11: 1
A12: 0.286091334 | B12: 0
A13: 0.9143179034 | B13: 1
A14: 0.7274565315 | B14: 1
A15: 0.5619231524 | B15: 0
A16: 0.8586070842 | B16: 1
A17: 0.591500637 | B17: 0
A18: 0.3390832129 | B18: 0
A19: 0.3475610774 | B19: 0
A20: 0.6086686261 | B20: 0
A21: 0.9459034801 | B21: 1
A22: 0.9294051662 | B22: 1
A23: 0.8994637717 | B23: 1
A24: 0.8450288452 | B24: 1
A25: 0.2396161325 | B25: 0
A26: 0.4813643569 | B26: 0
A27: 0.6906765244 | B27: 0
A28: 0.3454729358 | B28: 0
A29: 0.1010296898 | B29: 0
A30: 0.4239107867 | B30: 0
A31: 0.4391631747 | B31: 0
A32: 0.2328658861 | B32: 0
A33: 0.1871941163 | B33: 0
A34: 0.6447428505 | B34: 0
A35: 0.2308622463 | B35: 0
A36: 0.5094477429 | B36: 0
A37: 0.4976103166 | B37: 0
A38: 0.2422463734 | B38: 0
A39: 0.3129605383 | B39: 0
A40: 0.7967736349 | B40: 1
A41: 0.3251951323 | B41: 0
A42: 0.9527215442 | B42: 1
A43: 0.8896125939 | B43: 1
A44: 0.09661146972 | B44: 0
A45: 0.03257112719 | B45: 0
A46: 0.09236708939 | B46: 0
A47: 0.348511927 | B47: 0
A48: 0.9469621617 | B48: 1
A49: 0.3267166557 | B49: 0
A50: 0.8956029928 | B50: 1
A51: 0.9283195287 | B51: 1
A52: 0.2374178796 | B52: 0
A53: 0.8923228064 | B53: 1
A54: 0.7136083868 | B54: 1
A55: 0.5592935624 | B55: 0
A56: 0.03340342288 | B56: 0
A57: 0.2663430691 | B57: 0
A58: 0.9666085679 | B58: 1
A59: 0.2740720033 | B59: 0
A60: 0.8724710609 | B60: 1
A61: 0.7496157532 | B61: 1
A62: 0.1876391505 | B62: 0
A63: 0.01542359105 | B63: 0
A64: 0.6864146696 | B64: 0
A65: 0.4897976262 | B65: 0
A66: 0.5138135173 | B66: 0
A67: 0.3738806605 | B67: 0
A68: 0.0932939916 | B68: =IF(A68<0.7,0,1) -> 0
A69: 0.4516185383 | B69: 0
A70: 0.5569912266 | B70: 0
A71: 0.4221630888 | B71: 0
A72: 0.2750222698 | B72: 0
A73: 0.2050386761 | B73: 0
A74: 0.8961645383 | B74: 1
A75: 0.4432575486 | B75: 0
A76: 0.4437115093 | B76: 0
A77: 0.902059866 | B77: 1
A78: 0.3412713625 | B78: 0
A79: 0.8373784866 | B79: 1
A80: 0.1054438156 | B80: 0
A81: 0.7750397569 | B81: 1
A82: 0.8767794247 | B82: 1
A83: 0.0620570656 | B83: 0
A84: 0.6737682695 | B84: 0
A85: 0.2895016013 | B85: 0
A86: 0.4065529087 | B86: 0
A87: 0.967443033 | B87: 1
A88: 0.4693539288 | B88: 0
A89: 0.7362615832 | B89: 1
A90: 0.03633591415 | B90: 0
A91: 0.06633984597 | B91: 0
A92: 0.7349543173 | B92: 1
A93: 0.1976771734 | B93: 0
A94: 0.5988473129 | B94: 0
A95: 0.4907867405 | B95: 0
A96: 0.2279050155 | B96: 0
A97: 0.466484245 | B97: 0
A98: 0.553096691 | B98: 0
A99: 0.1739294794 | B99: 0
A100: 0.3727440744 | B100: 0
A101: 0.9308816366 | B101: 1
A102: 0.3998801127 | B102: 0
A103: 0.4339137046 | B103: 0
A104: 0.6778197748 | B104: 0
A105: 0.07933573443 | B105: 0
A106: 0.3675748195 | B106: 0
A107: 0.1636291826 | B107: 0
A108: 0.2135289665 | B108: 0
A109: 0.279306735 | B109: 0
A110: 0.2827714456 | B110: 0
A111: 0.3096945439 | B111: 0
A112: 0.7214427712 | B112: 1
A113: 0.5007830922 | B113: 0
A114: 0.4020759702 | B114: 0
A115: 0.9994308025 | B115: 1
A116: 0.6212384766 | B116: 0
A117: 0.3944056219 | B117: 0
A118: 0.6689400206 | B118: 0
A119: 0.871269506 | B119: 1
A120: 0.9491456394 | B120: 1
A121: 0.7706518341 | B121: 1
A122: 0.7829899808 | B122: 1
A123: 0.9559280147 | B123: 1
A124: 0.3803595802 | B124: 0
A125: 0.7227644606 | B125: 1
A126: 0.4810946959 | B126: 0
A127: 0.042335233 | B127: 0
A128: 0.9856502992 | B128: 1
A129: 0.2829153094 | B129: 0
A130: 0.7225802651 | B130: 1
A131: 0.6721108264 | B131: 0
A132: 0.01175291694 | B132: =IF(A132<0.7,0,1) -> 0
A133: 0.6367243115 | B133: 0
A134: 0.4807905126 | B134: 0
A135: 0.05495149095 | B135: 0
A136: 0.8899196612 | B136: 1
A137: 0.1123201351 | B137: 0
A138: 0.3073734386 | B138: 0
A139: 0.9258670697 | B139: 1
A140: 0.1518184462 | B140: 0
A141: 0.2202870445 | B141: 0
A142: 0.6503910262 | B142: 0
A143: 0.7015952084 | B143: 1
A144: 0.577868734 | B144: 0
A145: 0.4601635786 | B145: 0
A146: 0.4778320675 | B146: 0
A147: 6.20506106e-05 | B147: 0
A148: 0.8207260467 | B148: 1
A149: 0.5618319602 | B149: 0
A150: 0.9630085979 | B150: 1
A151: 0.9187669939 | B151: 1
A152: 0.4219739624 | B152: 0
A153: 0.4176116839 | B153: 0
A154: 0.5756744049 | B154: 0
A155: 0.9096579776 | B155: 1
A156: 0.9623251154 | B156: 1
A157: 0.2062855249 | B157: 0
A158: 0.1414666207 | B158: 0
A159: 0.5550086458 | B159: 0
A160: 0.9512372168 | B160: 1
A161: 0.3120333972 | B161: 0
A162: 0.6913205353 | B162: 0
A163: 0.6703040996 | B163: 0
A164: 0.2678889619 | B164: 0
A165: 0.1488214332 | B165: 0
A166: 0.7866222725 | B166: 1
A167: 0.6286651242 | B167: 0
A168: 0.3315116505 | B168: 0
A169: 0.9872465799 | B169: 1
A170: 0.9599881908 | B170: 1
A171: 0.2553492372 | B171: 0
A172: 0.9961855906 | B172: 1
A173: 0.7500119898 | B173: 1
A174: 0.07907891844 | B174: 0
A175: 0.8453850417 | B175: 1
A176: 0.7378215216 | B176: 1
A177: 0.3564910532 | B177: 0
A178: 0.3099602279 | B178: 0
A179: 0.3307254077 | B179: 0
A180: 0.2655555911 | B180: 0
A181: 0.2327867253 | B181: 0
A182: 0.409756117 | B182: 0
A183: 0.4261518481 | B183: 0
A184: 0.4486274163 | B184: 0
A185: 0.1811829455 | B185: 0
A186: 0.6090348575 | B186: 0
A187: 0.5426626605 | B187: 0
A188: 0.7013159186 | B188: 1
A189: 0.834963229 | B189: 1
A190: 0.3851992197 | B190: 0
A191: 0.2528637922 | B191: 0
A192: 0.5866299784 | B192: 0
A193: 0.5043448375 | B193: 0
A194: 0.3819760984 | B194: 0
A195: 0.5985890919 | B195: 0
A196: 0.95479826 | B196: =IF(A196<0.7,0,1) -> 1
A197: 0.2850379969 | B197: 0
A198: 0.5694942345 | B198: 0
A199: 0.2142041252 | B199: 0
A200: 0.9100403601 | B200: 1
A201: 0.7177031766 | B201: 1
... 9802 more rows

Sheet Würfel n=10
A1: Würfelbeispiel für das Gesetz der grossen Zahlen
A2: n = 10 | I2: =RAND() -> 0.4648288083
A3: Zufallszahlen | B3: Anzahl Augen | E3: Zufallszahlen werden mit dem Befehl: '=ZUFALLSZAHL()' erstellt z.B.
A4: 0.6533917532 | B4: =IF(A4<1/6,1,IF(A4<2/6,2,IF(A4<3/6,3,IF(A4<4/6,4,IF(A4<5/6,5,6))))) -> 4 | E4: Die Zufallzahlen werden dann fixiert, damit sie sich nicht laufend ändern
A5: 0.8250444577 | B5: 5 | E5: (z.B. durch Kopieren, Inhalte einfügen, Werte).
A6: 0.9729463844 | B6: 6
A7: 0.5177684008 | B7: 4
A8: 0.2147914923 | B8: 2
A9: 0.6785729111 | B9: 5
A10: 0.4758873885 | B10: 3
A11: 0.9013694779 | B11: 6
A12: 0.5609690556 | B12: 4
A13: 0.4884224411 | B13: 3
D14: (gehen Sie auf die Felder, um die Berechnung nachzuprüfen)
B15: Augenzahl | C15: Häufigkeiten | D15: rel. Häufigkeiten | E15: Wahrscheinlichkeiten | F15: Betrag der Abweichungen
B16: 1 | C16: =COUNTIF($B$4:$B$13,B16) -> 0 | D16: =(C16/10) -> 0 | E16: =(1/6) -> 0.1666666667 | F16: =ABS(D16-E16) -> 0.1666666667
B17: 2 | C17: 1 | D17: 0.1 | E17: 0.1666666667 | F17: 0.06666666667
B18: 3 | C18: 2 | D18: 0.2 | E18: 0.1666666667 | F18: 0.03333333333
B19: 4 | C19: 3 | D19: 0.3 | E19: 0.1666666667 | F19: 0.1333333333
B20: 5 | C20: 2 | D20: 0.2 | E20: 0.1666666667 | F20: 0.03333333333
B21: 6 | C21: 2 | D21: 0.2 | E21: 0.1666666667 | F21: 0.03333333333
E22: Summe | F22: =SUM(F16:F21) -> 0.4666666667
A131: n = 1000
A132: 0.09320037413 | B132: =IF(A132<1/6,1,IF(A132<2/6,2,IF(A132<3/6,3,IF(A132<4/6,4,IF(A132<5/6,5,6))))) -> 1
A133: 0.9575918106 | B133: 6
A134: 0.720499311 | B134: 5
A135: 0.2350607189 | B135: 2
A136: 0.7426468507 | B136: 5
A137: 0.7460478886 | B137: 5
A138: 0.1476407109 | B138: 1
A139: 0.1907484027 | B139: 2
A140: 0.5513901144 | B140: 4
A141: 0.4136404523 | B141: 3
A142: 0.5742090486 | B142: 4
A143: 0.5183930291 | B143: 4
A144: 0.3492653901 | B144: 3
A145: 0.3467229839 | B145: 3
A146: 0.3777520455 | B146: 3
A147: 0.1141656999 | B147: 1
A148: 0.432666073 | B148: 3
A149: 0.4248303937 | B149: 3
A150: 0.4706235651 | B150: 3
A151: 0.2053600277 | B151: 2
A152: 0.05215904582 | B152: 1
A153: 0.4653159974 | B153: 3
A154: 0.07973747395 | B154: 1
A155: 0.3130586266 | B155: 2
A156: 0.7600993168 | B156: 5
A157: 0.1467170385 | B157: 1
A158: 0.1193618159 | B158: 1
A159: 0.4637209192 | B159: 3
A160: 0.4144744541 | B160: 3
A161: 0.7649410392 | B161: 5
A162: 0.6972732578 | B162: 5
A163: 0.1319920286 | B163: 1
A164: 0.505039762 | B164: 4
A165: 0.2068293954 | B165: 2
A166: 0.4828193355 | B166: 3
A167: 0.9800205495 | B167: 6
A168: 0.993143716 | B168: 6
A169: 0.8757613818 | B169: 6
A170: 0.06385765848 | B170: 1
A171: 0.3573909641 | B171: 3
A172: 0.1479856027 | B172: 1
A173: 0.5779315294 | B173: 4
A174: 0.07687692859 | B174: 1
A175: 0.2196427174 | B175: 2
A176: 0.3224544417 | B176: 2
A177: 0.03639931824 | B177: 1
A178: 0.6890314552 | B178: 5
A179: 0.1892486726 | B179: 2
A180: 0.8225409046 | B180: 5
A181: 0.3855512587 | B181: 3
A182: 0.7102387143 | B182: 5
A183: 0.4657397381 | B183: 3
A184: 0.2412948162 | B184: 2
A185: 0.9677167742 | B185: 6
A186: 0.15776666 | B186: 1
A187: 0.6376945336 | B187: 4
A188: 0.009341335007 | B188: 1
A189: 0.9525781025 | B189: 6
A190: 0.4808713027 | B190: 3
A191: 0.8483904325 | B191: 6
A192: 0.2537643462 | B192: 2
A193: 0.4309712392 | B193: 3
A194: 0.7798671334 | B194: 5
A195: 0.2864442243 | B195: 2
A196: 0.3800537737 | B196: =IF(A196<1/6,1,IF(A196<2/6,2,IF(A196<3/6,3,IF(A196<4/6,4,IF(A196<5/6,5,6))))) -> 3
A197: 0.7194384126 | B197: 5
A198: 0.8159770597 | B198: 5
A199: 0.9220303415 | B199: 6
A200: 0.471310718 | B200: 3
A201: 0.9538882438 | B201: 6
A202: 0.3477695265 | B202: 3
A203: 0.6558464956 | B203: 4
A204: 0.2797600872 | B204: 2
A205: 0.7351438292 | B205: 5
A206: 0.05887326483 | B206: 1
A207: 0.405660856 | B207: 3
A208: 0.2065942219 | B208: 2
A209: 0.1731806374 | B209: 2
A210: 0.01836688946 | B210: 1
A211: 0.5925483994 | B211: 4
A212: 0.629157759 | B212: 4
A213: 0.1696783611 | B213: 2
A214: 0.622511484 | B214: 4
A215: 0.8966116344 | B215: 6
A216: 0.8341881777 | B216: 6
A217: 0.7734199271 | B217: 5
A218: 0.9684311365 | B218: 6
A219: 0.1735185011 | B219: 2
A220: 0.3365263121 | B220: 3
A221: 0.2362383458 | B221: 2
A222: 0.308121077 | B222: 2
A223: 0.2684246478 | B223: 2
A224: 0.409793212 | B224: 3
A225: 0.7904623985 | B225: 5
A226: 0.3425422488 | B226: 3
A227: 0.3187521781 | B227: 2
A228: 0.6764683302 | B228: 5
A229: 0.8067981473 | B229: 5
A230: 0.7759314343 | B230: 5
A231: 0.6339432722 | B231: 4
A232: 0.1682032021 | B232: 2
A233: 0.1349743743 | B233: 1
A234: 0.7946569962 | B234: 5
A235: 0.5376864077 | B235: 4
A236: 0.8295374547 | B236: 5
A237: 0.09866912295 | B237: 1
A238: 0.2407835319 | B238: 2
A239: 0.9463933731 | B239: 6
A240: 0.740644517 | B240: 5
A241: 0.0811282948 | B241: 1
A242: 0.972310205 | B242: 6
A243: 0.2698500333 | B243: 2
A244: 0.4085042843 | B244: 3
A245: 0.1319031707 | B245: 1
A246: 0.6323665371 | B246: 4
A247: 0.6830875884 | B247: 5
A248: 0.8145325589 | B248: 5
A249: 0.7355881075 | B249: 5
A250: 0.4221310792 | B250: 3
A251: 0.9606562989 | B251: 6
A252: 0.8168386191 | B252: 5
A253: 0.3834055906 | B253: 3
A254: 0.6376327484 | B254: 4
A255: 0.4025490776 | B255: 3
A256: 0.6458184256 | B256: 4
A257: 0.7940848075 | B257: 5
A258: 0.9182212893 | B258: 6
A259: 0.06260902569 | B259: 1
A260: 0.09456831726 | B260: =IF(A260<1/6,1,IF(A260<2/6,2,IF(A260<3/6,3,IF(A260<4/6,4,IF(A260<5/6,5,6))))) -> 1
A261: 0.9667707798 | B261: 6
A262: 0.8671549363 | B262: 6
A263: 0.5399561919 | B263: 4
A264: 0.1210875767 | B264: 1
A265: 0.4124178386 | B265: 3
A266: 0.5669201231 | B266: 4
A267: 0.9338560186 | B267: 6
A268: 0.6112861176 | B268: 4
A269: 0.6522880989 | B269: 4
A270: 0.3327464372 | B270: 2
A271: 0.1140866902 | B271: 1
A272: 0.6567118576 | B272: 4
A273: 0.7784806891 | B273: 5
A274: 0.6701747236 | B274: 5
A275: 0.9972874938 | B275: 6
A276: 0.5718033293 | B276: 4
A277: 0.8918244532 | B277: 6
A278: 0.8192817624 | B278: 5
A279: 0.3775159437 | B279: 3
A280: 0.7954096165 | B280: 5
A281: 0.9291707872 | B281: 6
A282: 0.5976280764 | B282: 4
A283: 0.5166651611 | B283: 4
A284: 0.3798745463 | B284: 3
A285: 0.9592466262 | B285: 6
A286: 0.9724433886 | B286: 6
A287: 0.5778460217 | B287: 4
A288: 0.2371065406 | B288: 2
A289: 0.8346618636 | B289: 6
A290: 0.4254889944 | B290: 3
A291: 0.9387413927 | B291: 6
A292: 0.5905446579 | B292: 4
A293: 0.9504117579 | B293: 6
A294: 0.2052013065 | B294: 2
A295: 0.493358219 | B295: 3
A296: 0.4823955671 | B296: 3
A297: 0.8181918197 | B297: 5
A298: 0.6731884067 | B298: 5
A299: 0.594668823 | B299: 4
A300: 0.453837412 | B300: 3
A301: 0.3485505214 | B301: 3
A302: 0.3259974 | B302: 2
A303: 0.8317922762 | B303: 5
A304: 0.2432712438 | B304: 2
A305: 0.3782125383 | B305: 3
A306: 0.6366652688 | B306: 4
A307: 0.9009318412 | B307: 6
A308: 0.2629392733 | B308: 2
... 833 more rows

Sheet Würfel n=100
A1: n = 100
A2: Zufallszahlen | B2: Anzahl Augen
A3: 0.1176202875 | B3: =IF(A3<1/6,1,IF(A3<2/6,2,IF(A3<3/6,3,IF(A3<4/6,4,IF(A3<5/6,5,6))))) -> 1
A4: 0.01987846645 | B4: 1
A5: 0.4377460372 | B5: 3
A6: 0.3151580745 | B6: 2 | D6: Ausprägungen | E6: Häufigkeiten | F6: rel. Häufigkeiten | G6: Wahrscheinlichkeiten | H6: Betrag der Abweichungen
A7: 0.3787770424 | B7: 3 | D7: 1 | E7: =COUNTIF($B$25:$B$127,D7) -> 7 | F7: =(E7/100) -> 0.07 | G7: =(1/6) -> 0.1666666667 | H7: =ABS(F7-G7) -> 0.09666666667
A8: 0.1806603677 | B8: 2 | D8: 2 | E8: 17 | F8: 0.17 | G8: 0.1666666667 | H8: 0.003333333333
A9: 0.476798638 | B9: 3 | D9: 3 | E9: 13 | F9: 0.13 | G9: 0.1666666667 | H9: 0.03666666667
A10: 0.8507504227 | B10: 6 | D10: 4 | E10: 4 | F10: 0.04 | G10: 0.1666666667 | H10: 0.1266666667
A11: 0.4312284584 | B11: 3 | D11: 5 | E11: 18 | F11: 0.18 | G11: 0.1666666667 | H11: 0.01333333333
A12: 0.3060168666 | B12: 2 | D12: 6 | E12: 19 | F12: 0.19 | G12: 0.1666666667 | H12: 0.02333333333
A13: 0.6029734571 | B13: 4 | G13: Summe | H13: =SUM(H7:H12) -> 0.3
A14: 0.01364883152 | B14: 1
A15: 0.2565013242 | B15: 2
A16: 0.3108321448 | B16: 2
A17: 0.8938206266 | B17: 6
A18: 0.4237011959 | B18: 3
A19: 0.3807717259 | B19: 3
A20: 0.7704471643 | B20: 5
A21: 0.7729272283 | B21: 5
A22: 0.1296363791 | B22: 1
A23: 0.3702058023 | B23: 3
A24: 0.002511443911 | B24: 1
A25: 0.8762176509 | B25: 6
A26: 0.544876492 | B26: 4
A27: 0.4433552337 | B27: 3
A28: 0.4030775722 | B28: 3
A29: 0.836163789 | B29: 6
A30: 0.1758990359 | B30: 2
A31: 0.7157582113 | B31: 5
A32: 0.6727200784 | B32: 5
A33: 0.9952165524 | B33: 6
A34: 0.2330880441 | B34: 2
A35: 0.3690078289 | B35: =IF(A35<1/6,1,IF(A35<2/6,2,IF(A35<3/6,3,IF(A35<4/6,4,IF(A35<5/6,5,6))))) -> 3
A36: 0.2372147426 | B36: 2
A37: 0.8973144365 | B37: 6
A38: 0.7364079949 | B38: 5
A39: 0.4742450035 | B39: 3
A40: 0.7715064504 | B40: 5
A41: 0.1761762183 | B41: 2
A42: 0.4379667259 | B42: 3
A43: 0.4825419954 | B43: 3
A44: 0.2562634116 | B44: 2
A45: 0.9742922132 | B45: 6
A46: 0.7351529636 | B46: 5
A47: 0.148582561 | B47: 1
A48: 0.4406581781 | B48: 3
A49: 0.9152941884 | B49: 6
A50: 0.3155516859 | B50: 2
A51: 0.2444343889 | B51: 2
A52: 0.8014603104 | B52: 5
A53: 0.3530354079 | B53: 3
A54: 0.3720676063 | B54: 3
A55: 0.2872882042 | B55: 2
A56: 0.6687802075 | B56: 5
A57: 0.301744824 | B57: 2
A58: 0.647243248 | B58: 4
A59: 0.7872652138 | B59: 5
A60: 0.942992139 | B60: 6
A61: 0.3371242897 | B61: 3
A62: 0.1089763882 | B62: 1
A63: 0.4684355315 | B63: 3
A64: 0.7166814356 | B64: 5
A65: 0.7397060707 | B65: 5
A66: 0.8646474642 | B66: 6
A67: 0.9140725937 | B67: =IF(A67<1/6,1,IF(A67<2/6,2,IF(A67<3/6,3,IF(A67<4/6,4,IF(A67<5/6,5,6))))) -> 6
A68: 0.3182695877 | B68: 2
A69: 0.93694739 | B69: 6
A70: 0.9716443439 | B70: 6
A71: 0.7304286249 | B71: 5
A72: 0.750851713 | B72: 5
A73: 0.3260002602 | B73: 2
A74: 0.8598820794 | B74: 6
A75: 0.1132289079 | B75: 1
A76: 0.2324310631 | B76: 2
A77: 0.9167981866 | B77: 6
A78: 0.08631742948 | B78: 1
A79: 0.9348019363 | B79: 6
A80: 0.9011434593 | B80: 6
A81: 0.3412405383 | B81: 3
A82: 0.5346535297 | B82: 4
A83: 0.04364253628 | B83: 1
A84: 0.824675775 | B84: 5
A85: 0.3521136442 | B85: 3
A86: 0.3194264006 | B86: 2
A87: 0.2980068823 | B87: 2
A88: 0.9369183426 | B88: 6
A89: 0.6863697912 | B89: 5
A90: 0.04904661557 | B90: 1
A91: 0.8981385298 | B91: 6
A92: 0.829827873 | B92: 5
A93: 0.9508675765 | B93: 6
A94: 0.6817955209 | B94: 5
A95: 0.125138027 | B95: 1
A96: 0.1918900088 | B96: 2
A97: 0.7631030488 | B97: 5
A98: 0.6463692112 | B98: 4
A99: 0.2033499347 | B99: =IF(A99<1/6,1,IF(A99<2/6,2,IF(A99<3/6,3,IF(A99<4/6,4,IF(A99<5/6,5,6))))) -> 2
A100: 0.3110359804 | B100: =IF(A100<1/6,1,IF(A100<2/6,2,IF(A100<3/6,3,IF(A100<4/6,4,IF(A100<5/6,5,6))))) -> 2
A101: 0.895690828 | B101: =IF(A101<1/6,1,IF(A101<2/6,2,IF(A101<3/6,3,IF(A101<4/6,4,IF(A101<5/6,5,6))))) -> 6
A102: 0.7909486094 | B102: =IF(A102<1/6,1,IF(A102<2/6,2,IF(A102<3/6,3,IF(A102<4/6,4,IF(A102<5/6,5,6))))) -> 5

Sheet Würfel n=1000
A1: n = 100
A2: Zufallszahlen | B2: Anzahl Augen
A3: 0.09320037413 | B3: =IF(A3<1/6,1,IF(A3<2/6,2,IF(A3<3/6,3,IF(A3<4/6,4,IF(A3<5/6,5,6))))) -> 1
A4: 0.9575918106 | B4: 6
A5: 0.720499311 | B5: 5
A6: 0.2350607189 | B6: 2 | D6: Ausprägungen | E6: Häufigkeiten | F6: rel. Häufigkeiten | G6: Wahrscheinlichkeiten | H6: Betrag der Abweichungen
A7: 0.7426468507 | B7: 5 | D7: 1 | E7: =COUNTIF($B$133:$B$1132,D7) -> 115 | F7: =(E7/1000) -> 0.115 | G7: =(1/6) -> 0.1666666667 | H7: =ABS(F7-G7) -> 0.05166666667
A8: 0.7460478886 | B8: 5 | D8: 2 | E8: 168 | F8: 0.168 | G8: 0.1666666667 | H8: 0.001333333333
A9: 0.1476407109 | B9: 1 | D9: 3 | E9: 135 | F9: 0.135 | G9: 0.1666666667 | H9: 0.03166666667
A10: 0.1907484027 | B10: 2 | D10: 4 | E10: 138 | F10: 0.138 | G10: 0.1666666667 | H10: 0.02866666667
A11: 0.5513901144 | B11: 4 | D11: 5 | E11: 171 | F11: 0.171 | G11: 0.1666666667 | H11: 0.004333333333
A12: 0.4136404523 | B12: 3 | D12: 6 | E12: 143 | F12: 0.143 | G12: 0.1666666667 | H12: 0.02366666667
A13: 0.5742090486 | B13: 4 | G13: Summe | H13: =SUM(H7:H12) -> 0.1413333333
A14: 0.5183930291 | B14: 4
A15: 0.3492653901 | B15: 3
A16: 0.3467229839 | B16: 3
A17: 0.3777520455 | B17: 3
A18: 0.1141656999 | B18: 1
A19: 0.432666073 | B19: 3
A20: 0.4248303937 | B20: 3
A21: 0.4706235651 | B21: 3
A22: 0.2053600277 | B22: 2
A23: 0.05215904582 | B23: 1
A24: 0.4653159974 | B24: 3
A25: 0.07973747395 | B25: 1
A26: 0.3130586266 | B26: 2
A27: 0.7600993168 | B27: 5
A28: 0.1467170385 | B28: 1
A29: 0.1193618159 | B29: 1
A30: 0.4637209192 | B30: 3
A31: 0.4144744541 | B31: 3
A32: 0.7649410392 | B32: 5
A33: 0.6972732578 | B33: 5
A34: 0.1319920286 | B34: 1
A35: 0.505039762 | B35: 4
A36: 0.2068293954 | B36: 2
A37: 0.4828193355 | B37: 3
A38: 0.9800205495 | B38: 6
A39: 0.993143716 | B39: 6
A40: 0.8757613818 | B40: 6
A41: 0.06385765848 | B41: 1
A42: 0.3573909641 | B42: 3
A43: 0.1479856027 | B43: 1
A44: 0.5779315294 | B44: 4
A45: 0.07687692859 | B45: 1
A46: 0.2196427174 | B46: 2
A47: 0.3224544417 | B47: 2
A48: 0.03639931824 | B48: 1
A49: 0.6890314552 | B49: 5
A50: 0.1892486726 | B50: 2
A51: 0.8225409046 | B51: 5
A52: 0.3855512587 | B52: 3
A53: 0.7102387143 | B53: 5
A54: 0.4657397381 | B54: 3
A55: 0.2412948162 | B55: 2
A56: 0.9677167742 | B56: 6
A57: 0.15776666 | B57: 1
A58: 0.6376945336 | B58: 4
A59: 0.009341335007 | B59: 1
A60: 0.9525781025 | B60: 6
A61: 0.4808713027 | B61: 3
A62: 0.8483904325 | B62: 6
A63: 0.2537643462 | B63: 2
A64: 0.4309712392 | B64: 3
A65: 0.7798671334 | B65: 5
A66: 0.2864442243 | B66: 2
A67: 0.3800537737 | B67: =IF(A67<1/6,1,IF(A67<2/6,2,IF(A67<3/6,3,IF(A67<4/6,4,IF(A67<5/6,5,6))))) -> 3
A68: 0.7194384126 | B68: 5
A69: 0.8159770597 | B69: 5
A70: 0.9220303415 | B70: 6
A71: 0.471310718 | B71: 3
A72: 0.9538882438 | B72: 6
A73: 0.3477695265 | B73: 3
A74: 0.6558464956 | B74: 4
A75: 0.2797600872 | B75: 2
A76: 0.7351438292 | B76: 5
A77: 0.05887326483 | B77: 1
A78: 0.405660856 | B78: 3
A79: 0.2065942219 | B79: 2
A80: 0.1731806374 | B80: 2
A81: 0.01836688946 | B81: 1
A82: 0.5925483994 | B82: 4
A83: 0.629157759 | B83: 4
A84: 0.1696783611 | B84: 2
A85: 0.622511484 | B85: 4
A86: 0.8966116344 | B86: 6
A87: 0.8341881777 | B87: 6
A88: 0.7734199271 | B88: 5
A89: 0.9684311365 | B89: 6
A90: 0.1735185011 | B90: 2
A91: 0.3365263121 | B91: 3
A92: 0.2362383458 | B92: 2
A93: 0.308121077 | B93: 2
A94: 0.2684246478 | B94: 2
A95: 0.409793212 | B95: 3
A96: 0.7904623985 | B96: 5
A97: 0.3425422488 | B97: 3
A98: 0.3187521781 | B98: 2
A99: 0.6764683302 | B99: 5
A100: 0.8067981473 | B100: 5
A101: 0.7759314343 | B101: 5
A102: 0.6339432722 | B102: 4
A103: 0.1682032021 | B103: 2
A104: 0.1349743743 | B104: 1
A105: 0.7946569962 | B105: 5
A106: 0.5376864077 | B106: 4
A107: 0.8295374547 | B107: 5
A108: 0.09866912295 | B108: 1
A109: 0.2407835319 | B109: 2
A110: 0.9463933731 | B110: 6
A111: 0.740644517 | B111: 5
A112: 0.0811282948 | B112: 1
A113: 0.972310205 | B113: 6
A114: 0.2698500333 | B114: 2
A115: 0.4085042843 | B115: 3
A116: 0.1319031707 | B116: 1
A117: 0.6323665371 | B117: 4
A118: 0.6830875884 | B118: 5
A119: 0.8145325589 | B119: 5
A120: 0.7355881075 | B120: 5
A121: 0.4221310792 | B121: 3
A122: 0.9606562989 | B122: 6
A123: 0.8168386191 | B123: 5
A124: 0.3834055906 | B124: 3
A125: 0.6376327484 | B125: 4
A126: 0.4025490776 | B126: 3
A127: 0.6458184256 | B127: 4
A128: 0.7940848075 | B128: 5
A129: 0.9182212893 | B129: 6
A130: 0.06260902569 | B130: 1
A131: 0.09456831726 | B131: =IF(A131<1/6,1,IF(A131<2/6,2,IF(A131<3/6,3,IF(A131<4/6,4,IF(A131<5/6,5,6))))) -> 1
A132: 0.9667707798 | B132: 6
A133: 0.8671549363 | B133: 6
A134: 0.5399561919 | B134: 4
A135: 0.1210875767 | B135: 1
A136: 0.4124178386 | B136: 3
A137: 0.5669201231 | B137: 4
A138: 0.9338560186 | B138: 6
A139: 0.6112861176 | B139: 4
A140: 0.6522880989 | B140: 4
A141: 0.3327464372 | B141: 2
A142: 0.1140866902 | B142: 1
A143: 0.6567118576 | B143: 4
A144: 0.7784806891 | B144: 5
A145: 0.6701747236 | B145: 5
A146: 0.9972874938 | B146: 6
A147: 0.5718033293 | B147: 4
A148: 0.8918244532 | B148: 6
A149: 0.8192817624 | B149: 5
A150: 0.3775159437 | B150: 3
A151: 0.7954096165 | B151: 5
A152: 0.9291707872 | B152: 6
A153: 0.5976280764 | B153: 4
A154: 0.5166651611 | B154: 4
A155: 0.3798745463 | B155: 3
A156: 0.9592466262 | B156: 6
A157: 0.9724433886 | B157: 6
A158: 0.5778460217 | B158: 4
A159: 0.2371065406 | B159: 2
A160: 0.8346618636 | B160: 6
A161: 0.4254889944 | B161: 3
A162: 0.9387413927 | B162: 6
A163: 0.5905446579 | B163: 4
A164: 0.9504117579 | B164: 6
A165: 0.2052013065 | B165: 2
A166: 0.493358219 | B166: 3
A167: 0.4823955671 | B167: 3
A168: 0.8181918197 | B168: 5
A169: 0.6731884067 | B169: 5
A170: 0.594668823 | B170: 4
A171: 0.453837412 | B171: 3
A172: 0.3485505214 | B172: 3
A173: 0.3259974 | B173: 2
A174: 0.8317922762 | B174: 5
A175: 0.2432712438 | B175: 2
A176: 0.3782125383 | B176: 3
A177: 0.6366652688 | B177: 4
A178: 0.9009318412 | B178: 6
A179: 0.2629392733 | B179: 2
A180: 0.5379298577 | B180: 4
A181: 0.2204597659 | B181: 2
A182: 0.3466875239 | B182: 3
A183: 0.02949924732 | B183: 1
A184: 0.9234349354 | B184: 6
A185: 0.2658278896 | B185: 2
A186: 0.9070303325 | B186: 6
A187: 0.1562222753 | B187: 1
A188: 0.4702924487 | B188: 3
A189: 0.9534656546 | B189: 6
A190: 0.1975206695 | B190: 2
A191: 0.06182205328 | B191: 1
A192: 0.3657122251 | B192: 3
A193: 0.8710893379 | B193: 6
A194: 0.1797146492 | B194: 2
A195: 0.1888970665 | B195: =IF(A195<1/6,1,IF(A195<2/6,2,IF(A195<3/6,3,IF(A195<4/6,4,IF(A195<5/6,5,6))))) -> 2
A196: 0.3694173078 | B196: 3
A197: 0.258707026 | B197: 2
A198: 0.9730297127 | B198: 6
A199: 0.3361357859 | B199: 3
A200: 0.4008800985 | B200: 3
... 802 more rows

Sheet Hausaufgabe 2 mai 06
A1: Hausaufgabe vom 2. Mai 2006 (Statistiken) Modul 502_D
A3: Ausgangslage:
A4: Zufallsexperiment Würfeln mit Würfel - eins bis sechs Augen. Dreimaliger Wurf
A5: Stichprobenraum S = {ein Auge, zwei Augen, drei Augen, vier Augen, fünf Augen, sechs Augen}
A6: Gleichverteilung auf S.
A7: Zufallsvariable X: X(sechs Augen)=10; X(s)=1 für s <>sechs Augen)
A9: Aufgabenstellung: Zu berechnen ist die Wahrscheinlichkeitsfunktion der Statistik T (=Summe) und T' (=Mittelwert) | J9: n = 3 und n = 4
A10: und die Erwartungswerte und Varianzen E(Xi), V(Xi), E(T), E(T'), V(T), V(T')
A37: Lösung | B37: n = 4
A38: X1 | B38: X2 | C38: X3 | D38: X4 | E38: Wahrscheinlichkeiten | I38: Summen | J38: Wahrscheinlichkeit der Werte von (X1,X2,X3,X4) | K38: Bild der Zufallsvariable T | L38: Wahrscheinlichkeiten | M38: gewichtete Werte der ZV T | N38: gewichtete quadrierte Abweichungen | P38: Mittelwerte | Q38: Bild der Zufallsvariable T' | R38: Wahrscheinlichkeiten | S38: gewichtete Werte der ZV T' | T38: gewichtete quadrierte Abweichungen
A39: 1 | B39: 1 | C39: 1 | D39: 1 | E39: =IF(A39=1,5/6,1/6) -> 0.8333333333 | F39: =IF(B39=1,5/6,1/6) -> 0.8333333333 | G39: =IF(C39=1,5/6,1/6) -> 0.8333333333 | H39: =IF(D39=1,5/6,1/6) -> 0.8333333333 | I39: =SUM(A39:D39) -> 4 | J39: =PRODUCT(E39:H39) -> 0.4822530864 | K39: 4 | L39: =J39 -> 0.4822530864 | M39: =K39*L39 -> 1.929012346 | N39: =L39*(K39-$M$44)^2 -> 17.36111111 | P39: =AVERAGE(A39:D39) -> 1 | Q39: 1 | R39: =L39 -> 0.4822530864 | S39: =Q39*R39 -> 0.4822530864 | T39: =R39*(Q39-$S$44)^2 -> 1.085069444
A40: 10 | B40: 1 | C40: 1 | D40: 1 | E40: 0.1666666667 | F40: 0.8333333333 | G40: 0.8333333333 | H40: 0.8333333333 | I40: 13 | J40: 0.09645061728 | K40: 13 | L40: =SUM(J40:J43) -> 0.3858024691 | M40: =K40*L40 -> 5.015432099 | N40: =L40*(K40-$M$44)^2 -> 3.472222222 | P40: 3.25 | Q40: 3.25 | R40: =L40 -> 0.3858024691 | S40: =Q40*R40 -> 1.253858025 | T40: =R40*(Q40-$S$44)^2 -> 0.2170138889
A41: 1 | B41: 10 | C41: 1 | D41: 1 | E41: 0.8333333333 | F41: 0.1666666667 | G41: 0.8333333333 | H41: 0.8333333333 | I41: 13 | J41: 0.09645061728 | K41: 22 | L41: =SUM(J44:J49) -> 0.1157407407 | M41: =K41*L41 -> 2.546296296 | N41: =L41*(K41-$M$44)^2 -> 16.66666667 | P41: 3.25 | Q41: 5.5 | R41: =L41 -> 0.1157407407 | S41: =Q41*R41 -> 0.6365740741 | T41: =R41*(Q41-$S$44)^2 -> 1.041666667
A42: 1 | B42: 1 | C42: 10 | D42: 1 | E42: 0.8333333333 | F42: 0.8333333333 | G42: 0.1666666667 | H42: 0.8333333333 | I42: 13 | J42: 0.09645061728 | K42: 31 | L42: =SUM(J50:J53) -> 0.01543209877 | M42: =K42*L42 -> 0.4783950617 | N42: =L42*(K42-$M$44)^2 -> 6.805555556 | P42: 3.25 | Q42: 7.75 | R42: =L42 -> 0.01543209877 | S42: =Q42*R42 -> 0.1195987654 | T42: =R42*(Q42-$S$44)^2 -> 0.4253472222
A43: 1 | B43: 1 | C43: 1 | D43: 10 | E43: 0.8333333333 | F43: 0.8333333333 | G43: 0.8333333333 | H43: 0.1666666667 | I43: 13 | J43: 0.09645061728 | K43: 40 | L43: =J54 -> 0.0007716049383 | M43: =K43*L43 -> 0.03086419753 | N43: =L43*(K43-$M$44)^2 -> 0.6944444444 | P43: 3.25 | Q43: 10 | R43: =L43 -> 0.0007716049383 | S43: =Q43*R43 -> 0.007716049383 | T43: =R43*(Q43-$S$44)^2 -> 0.04340277778
A44: 10 | B44: 10 | C44: 1 | D44: 1 | E44: 0.1666666667 | F44: 0.1666666667 | G44: 0.8333333333 | H44: 0.8333333333 | I44: 22 | J44: 0.01929012346 | L44: E(T)= | M44: =SUM(M39:M43) -> 10 | N44: =SUM(N39:N43) -> 45 | O44: (=V(T)) | P44: 5.5 | R44: E(T')= | S44: =SUM(S39:S43) -> 2.5 | T44: =SUM(T39:T43) -> 2.8125 | U44: (=V(T')
A45: 10 | B45: 1 | C45: 10 | D45: 1 | E45: 0.1666666667 | F45: 0.8333333333 | G45: 0.1666666667 | H45: 0.8333333333 | I45: 22 | J45: 0.01929012346 | M45: (=(4 * E(Xi)) | N45: (=(4*V(Xi) | P45: 5.5 | S45: (= E(Xi) | T45: (=V(Xi)/4
A46: 10 | B46: 1 | C46: 1 | D46: 10 | E46: 0.1666666667 | F46: 0.8333333333 | G46: 0.8333333333 | H46: 0.1666666667 | I46: 22 | J46: 0.01929012346 | P46: 5.5
A47: 1 | B47: 10 | C47: 10 | D47: 1 | E47: 0.8333333333 | F47: 0.1666666667 | G47: 0.1666666667 | H47: 0.8333333333 | I47: 22 | J47: 0.01929012346 | P47: 5.5
A48: 1 | B48: 10 | C48: 1 | D48: 10 | E48: 0.8333333333 | F48: 0.1666666667 | G48: 0.8333333333 | H48: 0.1666666667 | I48: 22 | J48: 0.01929012346 | P48: 5.5
A49: 1 | B49: 1 | C49: 10 | D49: 10 | E49: 0.8333333333 | F49: 0.8333333333 | G49: 0.1666666667 | H49: 0.1666666667 | I49: 22 | J49: 0.01929012346 | P49: 5.5
A50: 10 | B50: 10 | C50: 10 | D50: 1 | E50: 0.1666666667 | F50: 0.1666666667 | G50: 0.1666666667 | H50: 0.8333333333 | I50: 31 | J50: 0.003858024691 | P50: 7.75
A51: 10 | B51: 10 | C51: 1 | D51: 10 | E51: 0.1666666667 | F51: 0.1666666667 | G51: 0.8333333333 | H51: 0.1666666667 | I51: 31 | J51: 0.003858024691 | P51: 7.75
A52: 10 | B52: 1 | C52: 10 | D52: 10 | E52: 0.1666666667 | F52: 0.8333333333 | G52: 0.1666666667 | H52: 0.1666666667 | I52: 31 | J52: 0.003858024691 | P52: 7.75
A53: 1 | B53: 10 | C53: 10 | D53: 10 | E53: 0.8333333333 | F53: 0.1666666667 | G53: 0.1666666667 | H53: 0.1666666667 | I53: 31 | J53: 0.003858024691 | P53: 7.75
A54: 10 | B54: 10 | C54: 10 | D54: 10 | E54: 0.1666666667 | F54: 0.1666666667 | G54: 0.1666666667 | H54: 0.1666666667 | I54: 40 | J54: 0.0007716049383 | P54: 10

Sheet Lös HA 2_5_06
A1: Lösung | B1: n = 3
A2: Bild von Xi = {1, 10}
A3: Graph der Wahrscheinlichkeitsfunktion auf das Bild von Xi: {(1,5/6), (10,1/6)}
A4: dreifaches Kartesisches Produkt des Bildes von Xi als Tabelle dargestellt:
A5: X1 | B5: X2 | C5: X3 | D5: Wahrscheinlichkeiten | G5: Wahrscheinlichkeit für Wert von (X1,X2,X3) | H5: Summen | I5: Bild der Summe = Werte der Zufallsvariable | J5: Wahrscheinlichkeiten | K5: gewichtete Werte der Zufallsvariable t | L5: gewichtete quadrierte Abweichungen | N5: Mittelwerte | O5: Wahrscheinlichkeiten | P5: Bild der ZV Mittelwert | Q5: Wahrscheinlichkeiten | R5: gewichtete Werte der Zufallsvariable T' | S5: gewichtete quadrierte Abweichungen
A6: 1 | B6: 1 | C6: 1 | D6: =IF(A6=1,5/6,1/6) -> 0.8333333333 | E6: 0.8333333333 | F6: 0.8333333333 | G6: =PRODUCT(D6:F6) -> 0.5787037037 | H6: =SUM(A6:C6) -> 3 | I6: 3 | J6: =G6 -> 0.5787037037 | K6: =I6*J6 -> 1.736111111 | L6: =J6*(I6-$K$21)^2 -> 5.208333333 | N6: =AVERAGE(A6:C6) -> 1 | O6: =G6 -> 0.5787037037 | P6: 1 | Q6: =O6 -> 0.5787037037 | R6: =P6*Q6 -> 0.5787037037 | S6: =Q6*(P6-$R$21)^2 -> 0.5787037037
A7: 1 | B7: 1 | C7: 10 | D7: 0.8333333333 | E7: 0.8333333333 | F7: 0.1666666667 | G7: 0.1157407407 | H7: 12 | I7: 12 | J7: =SUM(G7:G9) -> 0.3472222222 | K7: =I7*J7 -> 4.166666667 | L7: =J7*(I7-$K$21)^2 -> 50 | N7: 4 | O7: 0.1157407407 | P7: 4 | Q7: =SUM(O7:O9) -> 0.3472222222 | R7: =P7*Q7 -> 1.388888889 | S7: =Q7*(P7-$R$21)^2 -> 5.555555556
A8: 1 | B8: 10 | C8: 1 | D8: 0.8333333333 | E8: 0.1666666667 | F8: 0.8333333333 | G8: 0.1157407407 | H8: 12 | I8: 21 | J8: =SUM(G10:G12) -> 0.06944444444 | K8: =I8*J8 -> 1.458333333 | L8: =J8*(I8-$K$21)^2 -> 30.625 | N8: 4 | O8: 0.1157407407 | P8: 7 | Q8: =SUM(O10:O12) -> 0.06944444444 | R8: =P8*Q8 -> 0.4861111111 | S8: =Q8*(P8-$R$21)^2 -> 3.402777778
A9: 10 | B9: 1 | C9: 1 | D9: 0.1666666667 | E9: 0.8333333333 | F9: 0.8333333333 | G9: 0.1157407407 | H9: 12 | I9: 30 | J9: =G13 -> 0.00462962963 | K9: =I9*J9 -> 0.1388888889 | L9: =J9*(I9-$K$21)^2 -> 4.166666667 | N9: 4 | O9: 0.1157407407 | P9: 10 | Q9: =O13 -> 0.00462962963 | R9: =P9*Q9 -> 0.0462962963 | S9: =Q9*(P9-$R$21)^2 -> 0.462962963
A10: 1 | B10: 10 | C10: 10 | D10: 0.8333333333 | E10: 0.1666666667 | F10: 0.1666666667 | G10: 0.02314814815 | H10: 21 | J10: E(T)= | K10: =SUM(K6:K9) -> 7.5 | L10: =SUM(L6:L9) -> 90 | M10: (=V(T) | N10: 7 | O10: 0.02314814815 | Q10: E(T')= | R10: =SUM(R6:R9) -> 2.5 | S10: =SUM(S6:S9) -> 10 | T10: (= V(T'))
A11: 10 | B11: 1 | C11: 10 | D11: 0.1666666667 | E11: 0.8333333333 | F11: 0.1666666667 | G11: 0.02314814815 | H11: 21 | K11: (=3*E(Xi) | L11: (3*V(Xi) | N11: 7 | O11: 0.02314814815 | R11: (=E(Xi) | S11: (=V(Xi)/3
A12: 10 | B12: 10 | C12: 1 | D12: 0.1666666667 | E12: 0.1666666667 | F12: 0.8333333333 | G12: 0.02314814815 | H12: 21 | N12: 7 | O12: 0.02314814815
A13: 10 | B13: 10 | C13: 10 | D13: 0.1666666667 | E13: 0.1666666667 | F13: 0.1666666667 | G13: 0.00462962963 | H13: 30 | N13: 10 | O13: 0.00462962963
G14: =SUM(G6:G13) -> 1
B15: Werte der Zufallsvariable | C15: Wahrscheinlichkeiten | D15: gewichtete Werte der Zufallsvariable | E15: gewichtete Quadrierte Abweichungen
B16: 1 | C16: =5/6 -> 0.8333333333 | D16: =B16*C16 -> 0.8333333333 | E16: =C16*(B16-$D$29)^2 -> 0.8333333333
B17: 10 | C17: =1/6 -> 0.1666666667 | D17: =B17*C17 -> 1.666666667 | E17: =C17*(B17-$D$29)^2 -> 16.66666667
A18: E(Xi)= | D18: =SUM(D16:D17) -> 2.5
A19: V(Xi)= | E19: =SUM(E16:E17) -> 17.5

Sheet ZU
A1: Zusatzübung
A2: Gegenben sei
A4: Wurfexperiment Münze mit S = {K,Z}
A5: w(K)=0.4
A6: w(Z)=0.6
A7: X(K)=1
A8: X(Z)=10
A10: Es werden 5 Wurfexperimente durchgeführt. Berechnen Sie den Erwartungswert und die Varianz der Zufallsvariable "Varianz" auf das
A11: das Bild von X=(X1,...X5).
A12: Vergleichen Sie die Resultate mit E(Xi) und V(Xi).

Sheet Lösung ZU
A2: Kartesisches Produkt der Bilder von Xi
A3: X1 | B3: X2 | C3: X3 | D3: X4 | E3: X5 | F3: Wahrscheinlichkeiten | K3: Werte der gemeinsamen Wahrscheinlichkeitsfunktion | L3: Varianzen | M3: Bild der Statistik "Varianz" | N3: Wahrscheinlichkeitsfunktion der Statistik "Varianz" | O3: gewichtete Werte der Statistik | P3: gewichtete quadrierte Abweichungen
A4: 1 | B4: 1 | C4: 1 | D4: 1 | E4: 1 | F4: =IF(A4=1,0.6,0.4) -> 0.6 | G4: =IF(B4=1,0.6,0.4) -> 0.6 | H4: =IF(C4=1,0.6,0.4) -> 0.6 | I4: =IF(D4=1,0.6,0.4) -> 0.6 | J4: =IF(E4=1,0.6,0.4) -> 0.6 | K4: =PRODUCT(F4:J4) -> 0.07776 | L4: =VAR(A4:E4) -> 0 | M4: 0 | N4: =K4+K35 -> 0.088 | O4: =M4*N4 -> 0 | P4: =N4*(M4-$O$7)^2 -> 0.0811008
A5: 1 | B5: 1 | C5: 1 | D5: 1 | E5: -1 | F5: 0.6 | G5: 0.6 | H5: 0.6 | I5: 0.6 | J5: 0.4 | K5: 0.05184 | L5: 0.8 | M5: 0.8 | N5: =K5+K6+K8+K12+K19+K20+K27+K31+K33+K34 -> 0.336 | O5: =M5*N5 -> 0.2688 | P5: =N5*(M5-$O$7)^2 -> 0.0086016
A6: 1 | B6: 1 | C6: 1 | D6: -1 | E6: 1 | F6: 0.6 | G6: 0.6 | H6: 0.6 | I6: 0.4 | J6: 0.6 | K6: 0.05184 | L6: 0.8 | M6: 1.2 | N6: =K7+SUM(K9:K11)+SUM(K13:K18)+SUM(K21:K26)+SUM(K28:K30)+K32 -> 0.576 | O6: =M6*N6 -> 0.6912 | P6: =N6*(M6-$O$7)^2 -> 0.0331776
A7: 1 | B7: 1 | C7: 1 | D7: -1 | E7: -1 | F7: 0.6 | G7: 0.6 | H7: 0.6 | I7: 0.4 | J7: 0.4 | K7: 0.03456 | L7: 1.2 | N7: E(V)= | O7: =SUM(O4:O6) -> 0.96 | Q7: (=Erwartungswert der Statistik "Varianz")
A8: 1 | B8: 1 | C8: -1 | D8: 1 | E8: 1 | F8: 0.6 | G8: 0.6 | H8: 0.4 | I8: 0.6 | J8: 0.6 | K8: 0.05184 | L8: 0.8 | N8: V(V)= | P8: =SUM(P4:P7) -> 0.12288 | Q8: (= Varianz der Statistik "Varianz")
A9: 1 | B9: 1 | C9: -1 | D9: 1 | E9: -1 | F9: 0.6 | G9: 0.6 | H9: 0.4 | I9: 0.6 | J9: 0.4 | K9: 0.03456 | L9: 1.2
A10: 1 | B10: 1 | C10: -1 | D10: -1 | E10: 1 | F10: 0.6 | G10: 0.6 | H10: 0.4 | I10: 0.4 | J10: 0.6 | K10: 0.03456 | L10: 1.2
A11: 1 | B11: 1 | C11: -1 | D11: -1 | E11: -1 | F11: 0.6 | G11: 0.6 | H11: 0.4 | I11: 0.4 | J11: 0.4 | K11: 0.02304 | L11: 1.2 | N11: E(Xi) | O11: =(0.4*-1+0.6*1) -> 0.2
A12: 1 | B12: -1 | C12: 1 | D12: 1 | E12: 1 | F12: 0.6 | G12: 0.4 | H12: 0.6 | I12: 0.6 | J12: 0.6 | K12: 0.05184 | L12: 0.8 | N12: V(Xi) | O12: =0.4*(-1-0.2)^2+0.6*(1-0.2)^2 -> 0.96
A13: 1 | B13: -1 | C13: 1 | D13: 1 | E13: -1 | F13: 0.6 | G13: 0.4 | H13: 0.6 | I13: 0.6 | J13: 0.4 | K13: 0.03456 | L13: 1.2
A14: 1 | B14: -1 | C14: 1 | D14: -1 | E14: 1 | F14: 0.6 | G14: 0.4 | H14: 0.6 | I14: 0.4 | J14: 0.6 | K14: 0.03456 | L14: 1.2 | N14: Somit gilt E(V)=V(Xi)
A15: 1 | B15: -1 | C15: 1 | D15: -1 | E15: -1 | F15: 0.6 | G15: 0.4 | H15: 0.6 | I15: 0.4 | J15: 0.4 | K15: 0.02304 | L15: 1.2
A16: 1 | B16: -1 | C16: -1 | D16: 1 | E16: 1 | F16: 0.6 | G16: 0.4 | H16: 0.4 | I16: 0.6 | J16: 0.6 | K16: 0.03456 | L16: 1.2
A17: 1 | B17: -1 | C17: -1 | D17: 1 | E17: -1 | F17: 0.6 | G17: 0.4 | H17: 0.4 | I17: 0.6 | J17: 0.4 | K17: 0.02304 | L17: 1.2
A18: 1 | B18: -1 | C18: -1 | D18: -1 | E18: 1 | F18: 0.6 | G18: 0.4 | H18: 0.4 | I18: 0.4 | J18: 0.6 | K18: 0.02304 | L18: 1.2
A19: 1 | B19: -1 | C19: -1 | D19: -1 | E19: -1 | F19: 0.6 | G19: 0.4 | H19: 0.4 | I19: 0.4 | J19: 0.4 | K19: 0.01536 | L19: 0.8
A20: -1 | B20: 1 | C20: 1 | D20: 1 | E20: 1 | F20: 0.4 | G20: 0.6 | H20: 0.6 | I20: 0.6 | J20: 0.6 | K20: 0.05184 | L20: 0.8
A21: -1 | B21: 1 | C21: 1 | D21: 1 | E21: -1 | F21: 0.4 | G21: 0.6 | H21: 0.6 | I21: 0.6 | J21: 0.4 | K21: 0.03456 | L21: 1.2
A22: -1 | B22: 1 | C22: 1 | D22: -1 | E22: 1 | F22: 0.4 | G22: 0.6 | H22: 0.6 | I22: 0.4 | J22: 0.6 | K22: 0.03456 | L22: 1.2
A23: -1 | B23: 1 | C23: 1 | D23: -1 | E23: -1 | F23: 0.4 | G23: 0.6 | H23: 0.6 | I23: 0.4 | J23: 0.4 | K23: 0.02304 | L23: 1.2
A24: -1 | B24: 1 | C24: -1 | D24: 1 | E24: 1 | F24: 0.4 | G24: 0.6 | H24: 0.4 | I24: 0.6 | J24: 0.6 | K24: 0.03456 | L24: 1.2
A25: -1 | B25: 1 | C25: -1 | D25: 1 | E25: -1 | F25: 0.4 | G25: 0.6 | H25: 0.4 | I25: 0.6 | J25: 0.4 | K25: 0.02304 | L25: 1.2
A26: -1 | B26: 1 | C26: -1 | D26: -1 | E26: 1 | F26: 0.4 | G26: 0.6 | H26: 0.4 | I26: 0.4 | J26: 0.6 | K26: 0.02304 | L26: 1.2
A27: -1 | B27: 1 | C27: -1 | D27: -1 | E27: -1 | F27: 0.4 | G27: 0.6 | H27: 0.4 | I27: 0.4 | J27: 0.4 | K27: 0.01536 | L27: 0.8
A28: -1 | B28: -1 | C28: 1 | D28: 1 | E28: 1 | F28: 0.4 | G28: 0.4 | H28: 0.6 | I28: 0.6 | J28: 0.6 | K28: 0.03456 | L28: 1.2
A29: -1 | B29: -1 | C29: 1 | D29: 1 | E29: -1 | F29: 0.4 | G29: 0.4 | H29: 0.6 | I29: 0.6 | J29: 0.4 | K29: 0.02304 | L29: 1.2
A30: -1 | B30: -1 | C30: 1 | D30: -1 | E30: 1 | F30: 0.4 | G30: 0.4 | H30: 0.6 | I30: 0.4 | J30: 0.6 | K30: 0.02304 | L30: 1.2
A31: -1 | B31: -1 | C31: 1 | D31: -1 | E31: -1 | F31: 0.4 | G31: 0.4 | H31: 0.6 | I31: 0.4 | J31: 0.4 | K31: 0.01536 | L31: 0.8
A32: -1 | B32: -1 | C32: -1 | D32: 1 | E32: 1 | F32: 0.4 | G32: 0.4 | H32: 0.4 | I32: 0.6 | J32: 0.6 | K32: 0.02304 | L32: 1.2
A33: -1 | B33: -1 | C33: -1 | D33: 1 | E33: -1 | F33: 0.4 | G33: 0.4 | H33: 0.4 | I33: 0.6 | J33: 0.4 | K33: 0.01536 | L33: 0.8
A34: -1 | B34: -1 | C34: -1 | D34: -1 | E34: 1 | F34: 0.4 | G34: 0.4 | H34: 0.4 | I34: 0.4 | J34: 0.6 | K34: 0.01536 | L34: 0.8
A35: -1 | B35: -1 | C35: -1 | D35: -1 | E35: -1 | F35: 0.4 | G35: 0.4 | H35: 0.4 | I35: 0.4 | J35: 0.4 | K35: 0.01024 | L35: 0
